fUSD/lending_fUSD_20260121
["ID","MTS","AMOUNT","RATE_DAILY","PERIOD"]
[402903567,1768968641727,-21699.91178164,0.00038791,15]
[402903568,1768968641736,-2904.1648,0.00038888,30]
[402903569,1768968641745,-500.0,0.00038904,120]
[402903570,1768968641754,-389.0,0.00038961,20]
[402903571,1768968641763,-4275.49923167,0.00039075,2]
[402903572,1768968641772,-500.0,0.00039178,120]
[402903573,1768968641782,-389.0,0.00039347,20]
[402903574,1768968641793,-314.0,0.0003937,11]
[402903575,1768968641804,-258.40676769,0.00039386,2]
[402903576,1768968641814,-154.9220976,0.00039412,87]
[402903577,1768968641823,-4275.49923167,0.00039434,2]
[402903578,1768968641832,-500.0,0.00039452,120]
[402903579,1768968641841,-271.53575382,0.00039639,28]
[402903580,1768968641850,-406.20124822,0.00039639,28]
[402903581,1768968641861,-500.0,0.00039726,120]
[402903582,1768968641870,-389.0,0.00039733,20]
[402903583,1768968641879,-4275.49923167,0.00039792,2]
[402903584,1768968641888,-1101.0,0.00039798,5]
[402903585,1768968641897,-575.71488184,0.000398,6]
[402903586,1768968641905,-187.1034154,0.000398,2]
[402903587,1768968641914,-241.07148071,0.000398,2]
[402903588,1768968641923,-1495.17784509,0.000398,2]
[402903589,1768968641931,-2203.2446792,0.000398,15]
[402903590,1768968641940,-158.60706812,0.000398,2]
[402903591,1768968641949,-1059.71899818,0.000398,2]
[402903592,1768968641958,-447.20577999,0.000398,2]
[402903593,1768968641967,-231.36816952,0.0003987,2]
[402903594,1768968641975,-231.36816952,0.0003987,2]
[402903595,1768968641984,-1999.0,0.00039879,120]
[402903596,1768968641993,-150.0,0.00039879,20]
[402903597,1768968642001,-150.0,0.00039879,5]
[402903598,1768968642010,-150.0,0.00039879,5]
[402903599,1768968642019,-150.0,0.00039879,5]
[402903600,1768968642027,-4002173.09156843,0.0003988,30]
[402903601,1768968642036,-153.98,0.000399,14]
[402903602,1768968642045,-236.08658152,0.00039999,31]
[402903603,1768968642054,-500.0,0.00039999,31]
[402903604,1768968642063,-361.29088959,0.00039999,31]
[402903605,1768968642071,-212.51534825,0.00039999,31]
[402903606,1768968642080,-500.0,0.00039999,31]
[402903607,1768968642089,-392.72721507,0.00039999,31]
[402903608,1768968642097,-301.97,0.0004,120]
[402903609,1768968642105,-562.81,0.0004,120]
[402903610,1768968642114,-500.0,0.0004,120]
[402903611,1768968642123,-150.88,0.0004,30]
[402903612,1768968642131,-258.40676769,0.00040079,28]
[402903613,1768968642140,-4275.49923167,0.00040151,15]
[402903614,1768968642149,-500.0,0.00040273,120]
[402903615,1768968642158,-447.20577994,0.0004037,2]
[402903616,1768968642166,-163.0,0.00040442,11]
[402903617,1768968642175,-277.5991342,0.000405,120]
[402903618,1768968642184,-4275.49923167,0.00040509,15]
[402903619,1768968642193,-500.0,0.00040547,120]
[402903621,1768968642203,-154.9220976,0.00040667,95]
[402903622,1768968642212,-4970.44845,0.00040713,30]
[402903623,1768968642221,-151.0,0.00040725,120]
[402903624,1768968642230,-258.40676769,0.00040772,28]
[402903625,1768968642239,-500.0,0.00040821,120]
[402903626,1768968642249,-500.0,0.00040821,120]
[402903627,1768968642262,-500.0,0.00040821,120]
[402903628,1768968642272,-500.0,0.00040821,120]
[402903629,1768968642282,-500.0,0.00040821,120]
[402903630,1768968642291,-500.0,0.00040821,120]
[402903631,1768968642301,-500.0,0.00040821,120]
[402903632,1768968642310,-500.0,0.00040821,120]
[402903634,1768968642319,-647.12494876,0.00040821,120]
[402903636,1768968642328,-4275.49923167,0.00040868,15]
[402903638,1768968642337,-447.20577994,0.00040941,2]
[402903639,1768968642346,-1999.0,0.00040975,120]
[402903641,1768968642356,-2440.0,0.00041,120]
[402903643,1768968642365,-399.24178651,0.00041,120]
[402903644,1768968642374,-1359.1,0.00041041,120]
[402903645,1768968642384,-500.0,0.00041059,14]
[402903646,1768968642393,-647.1828411,0.00041068,120]
[402903647,1768968642403,-500.0,0.00041095,120]
[402903648,1768968642412,-600.0,0.00041096,120]
[402903649,1768968642422,-795.0,0.00041096,120]
[402903650,1768968642431,-795.0,0.00041096,120]
[402903651,1768968642440,-795.0,0.00041096,120]
[402903652,1768968642449,-795.0,0.00041096,120]
[402903653,1768968642459,-795.0,0.00041096,120]
[402903654,1768968642468,-795.0,0.00041096,120]
[402903655,1768968642477,-795.0,0.00041096,120]
[402903656,1768968642486,-795.0,0.00041096,120]
[402903657,1768968642495,-795.0,0.00041096,120]
[402903658,1768968642504,-795.0,0.00041096,120]
[402903659,1768968642513,-795.0,0.00041096,120]
[402903660,1768968642523,-795.0,0.00041096,120]
[402903661,1768968642532,-795.0,0.00041096,120]
[402903662,1768968642542,-795.0,0.00041096,120]
[402903663,1768968642551,-795.0,0.00041096,120]
[402903664,1768968642560,-795.0,0.00041096,120]
[402903665,1768968642570,-795.0,0.00041096,120]
[402903666,1768968642579,-795.0,0.00041096,120]
[402903667,1768968642588,-795.0,0.00041096,120]
[402903668,1768968642597,-795.0,0.00041096,120]
[402903669,1768968642607,-795.0,0.00041096,120]
[402903670,1768968642616,-795.0,0.00041096,120]
[402903671,1768968642625,-795.0,0.00041096,120]
[402903673,1768968642635,-805.76987256,0.00041096,120]
[402903674,1768968642645,-549.5985,0.00041139,60]
[402903675,1768968642655,-449262.32425838,0.00041222,120]
[402903676,1768968642665,-4275.49923167,0.00041226,15]
[402903677,1768968642675,-187.1034154,0.00041326,3]
[402903678,1768968642684,-241.0714807,0.00041326,2]
[402903679,1768968642693,-1495.17784508,0.00041326,2]
[402903680,1768968642703,-1059.71899817,0.00041326,2]
[402903681,1768968642712,-1200.0,0.00041333,60]
[402903682,1768968642722,-500.0,0.00041369,120]
[402903683,1768968642731,-600.0,0.0004137,120]
[402903684,1768968642741,-5185.39882,0.00041374,30]
[402903685,1768968642750,-1682.75214236,0.00041395,7]
[402903686,1768968642760,-200.0,0.00041397,120]
[402903687,1768968642770,-258.40676769,0.00041465,28]
[402903688,1768968642779,-447.20577994,0.00041511,2]
[402903689,1768968642793,-300.211202,0.00041622,107]
[402903692,1768968642803,-500.0,0.00041643,120]
[402903695,1768968642812,-600.0,0.00041644,120]
[402903697,1768968642822,-1359.1,0.00041745,120]
[402903699,1768968642833,-1101.0,0.00041788,30]
[402903701,1768968642843,-1200.0,0.00041881,60]
[402903703,1768968642853,-500.0,0.00041881,60]
[402903705,1768968642863,-715.75346718,0.000419,120]
[402903706,1768968642872,-715.75346701,0.000419,120]
[402903707,1768968642881,-715.75346701,0.000419,120]
[402903708,1768968642890,-715.75346701,0.000419,120]
[402903710,1768968642899,-715.75346701,0.000419,120]
[402903711,1768968642908,-715.75346701,0.000419,120]
[402903712,1768968642918,-715.75346701,0.000419,120]
[402903713,1768968642928,-715.75346701,0.000419,120]
[402903714,1768968642937,-715.75346701,0.000419,120]
[402903715,1768968642947,-715.75346701,0.000419,120]
[402903716,1768968642957,-715.75346701,0.000419,120]
[402903717,1768968642966,-715.75346701,0.000419,120]
[402903718,1768968642975,-715.75346701,0.000419,120]
[402903719,1768968642984,-715.75346701,0.000419,120]
[402903720,1768968642993,-715.75346701,0.000419,120]
[402903721,1768968643003,-715.75346701,0.000419,120]
[402903722,1768968643012,-715.75346701,0.000419,120]
[402903723,1768968643021,-715.75346701,0.000419,120]
[402903724,1768968643031,-715.75346701,0.000419,120]
[402903725,1768968643040,-715.75346701,0.000419,120]
[402903726,1768968643050,-500.0,0.00041917,120]
[402903727,1768968643059,-600.0,0.00041918,120]
[402903728,1768968643068,-154.9220976,0.00041922,103]
[402903729,1768968643078,-232.96237352,0.00042,2]
[402903730,1768968643087,-224.59,0.00042,120]
[402903731,1768968643096,-500.0,0.00042,120]
[402903732,1768968643106,-150.88,0.00042,33]
[402903733,1768968643115,-662.56,0.00042027,30]
[402903734,1768968643124,-1999.0,0.00042071,120]
[402903735,1768968643133,-447.20577994,0.00042082,2]
[402903736,1768968643143,-7018.6277505,0.00042131,15]
[402903742,1768968644386,-480.17429951,0.00042131,15]
[402903743,1768968644846,-30924.43441426,0.00042131,15]
[402903744,1768968644863,-21000.0,0.00042131,15]
[402903756,1768968646759,-4827.0,0.00028632,2]
[402903757,1768968646768,-9173.0,0.00042131,15]
[402903758,1768968646859,-377.056143,0.00042131,15]
[402903759,1768968646871,-3446.9,0.00042131,15]
[402903760,1768968646911,-2478.61934173,0.00042131,15]
[402903761,1768968646922,-2100.85685,0.00042131,15]
[402903762,1768969036686,500.0,0.000176,30]
[402903763,1768969037151,500.0,0.000176,30]
[402903764,1768969037851,500.0,0.00015018,10]
[402903765,1768969047326,553.96313233,0.000176,30]
[402903775,1768969636222,500.0,0.000176,30]
[402903776,1768969636521,500.0,0.000176,30]
[402903777,1768969636664,515.5805807,0.00014877,2]
[402903778,1768969637404,500.0,0.000176,30]
[402903779,1768969637758,500.0,0.000176,30]
[402903780,1768969637956,500.0,0.00014877,2]
[402903781,1768969638322,725.15333282,0.00014877,2]
[402903782,1768969641516,500.0,0.000176,30]
[402903783,1768969641989,500.0,0.00014877,2]
[402903784,1768969644866,500.0,0.000176,30]
[402903785,1768969645378,500.0,0.000176,30]
[402903786,1768969645830,500.0,0.00014877,2]
[402903787,1768969647267,651.68657385,0.00014877,2]
[402903788,1768969647950,501.34501007,0.000176,30]
[402903789,1768969648036,500.0,0.000176,30]
[402903790,1768969648273,503.92379409,0.00014877,2]
[402903791,1768969648358,500.0,0.000176,30]
[402903792,1768969648699,500.0,0.000176,30]
[402903793,1768969649331,502.76959899,0.00014877,2]
[402903826,1768969832259,-250.0,0.00017,2]
[402903827,1768969832268,-300.0,0.000173,6]
[402903828,1768969832277,-500.0,0.00017373,2]
[402903830,1768969832286,-150.00868956,0.00017373,2]
[402903831,1768969832295,-600.0,0.000174,6]
[402903832,1768969832305,-179.39856212,0.00017423,2]
[402903833,1768969832315,-172.9104434,0.00017423,2]
[402903834,1768969832325,-166.66,0.00017456,2]
[402903835,1768969832334,-300.0,0.00017499,2]
[402903836,1768969832343,-23266.27927483,0.000175,2]
[402903837,1768969832352,-1000.0,0.000175,6]
[402903838,1768969832361,-15264.70354698,0.00017555,2]
[402903839,1768969832371,-1300.0,0.000176,6]
[402903840,1768969832381,-781.24543487,0.000177,2]
[402903841,1768969832390,-1700.0,0.000177,6]
[402903842,1768969832399,-1410.45805499,0.000177,2]
[402903843,1768969832409,-54338.99433637,0.000178,2]
[402903844,1768969832418,-4951.73030725,0.000178,2]
[402903845,1768969832428,-300.0,0.000178,6]
[402903846,1768969832438,-166.66,0.00017824,2]
[402903847,1768969832447,-151.0,0.00017875,2]
[402903848,1768969832456,-300.0,0.000179,6]
[402903849,1768969832465,-4426.43623992,0.000179,2]
[402903850,1768969832474,-12329.04714575,0.000179,2]
[402903851,1768969832485,-72309.91333916,0.000179,2]
[402903852,1768969832497,-40631.48462847,0.000179,2]
[402903853,1768969832508,-10680.44275122,0.000179,2]
[402903854,1768969832518,-2203.2446792,0.000179,2]
[402903855,1768969832527,-723.21444213,0.000179,2]
[402903856,1768969832537,-158.60706814,0.000179,2]
[402903857,1768969832546,-1495.17784509,0.000179,2]
[402903858,1768969832556,-231.36816952,0.0001799,2]
[402903859,1768969832565,-231.36816952,0.0001799,2]
[402903860,1768969832575,-231.36816952,0.0001799,2]
[402903861,1768969832584,-151.0,0.00017997,2]
[402903862,1768969832593,-300.0,0.00017999,2]
[402903863,1768969832602,-670.56413926,0.00017999,2]
[402903864,1768969832611,-300.0,0.00017999,2]
[402903865,1768969832620,-675.00377713,0.00017999,2]
[402903866,1768969832629,-150.0,0.00017999,2]
[402903867,1768969832638,-150.0,0.00017999,2]
[402903868,1768969832647,-150.0,0.00017999,2]
[402903869,1768969832656,-500.0,0.00017999,2]
[402903870,1768969832665,-346.69735886,0.00017999,2]
[402903871,1768969832674,-423.07898182,0.00017999,2]
[402903872,1768969832683,-607.27940489,0.00017999,2]
[402903873,1768969832692,-500.0,0.00017999,2]
[402903874,1768969832702,-288.69160554,0.00017999,2]
[402903875,1768969832710,-500.0,0.00017999,2]
[402903876,1768969832719,-500.0,0.00017999,2]
[402903877,1768969832729,-500.0,0.00017999,2]
[402903878,1768969832738,-17399.25695772,0.00018,2]
[402903879,1768969832821,-2413.61553984,0.00018,2]
[402903880,1768969832890,-2277.12736625,0.00018,2]
[402903881,1768969832902,-1614.4797699,0.00018,2]
[402903882,1768969832938,-289.14843026,0.00018,2]
[402903883,1768969832950,-3041.31296243,0.00018,2]
[402903884,1768969833322,-341.348914,0.00018,2]
[402903890,1768969838408,-732.84196244,0.00018,2]
[402903905,1768969838488,-1828.59812512,0.00018,2]
[402903917,1768969838590,-2811017.33295296,0.00018,2]
[402904035,1768969840082,-459.46174605,0.00018,2]
[402904036,1768969840200,-7095667.3390124,0.00018,2]
[402904037,1768969840304,-2050.77884625,0.00018,2]
[402904038,1768969840543,-2518.11899475,0.00018,2]
[402904050,1768969843055,-2374.29189746,0.000179,2]
[402904051,1768969843065,-132245.26727599,0.00018,2]
[402904052,1768969843075,-118956.47280148,0.00018,2]
[402904053,1768969843089,-121008.03691126,0.00018,2]
[402904054,1768969843098,-60696.16123312,0.00018,2]
[402904055,1768969843434,-324.97946918,0.00018,2]
[402904070,1768969847248,-344.31000005,0.00018,2]
[402904071,1768969847303,-984.14314611,0.00018,2]
[402904134,1768971032178,-338.0,0.00017224,2]
[402904135,1768971032190,-1133.8449,0.00017224,2]
[402904136,1768971032199,-208.26524805,0.00017323,2]
[402904137,1768971032293,-574.55075195,0.00017323,2]
[402904138,1768971032304,-195.118,0.00017323,2]
[402904139,1768971032313,-199.07288517,0.00017323,2]
[402904140,1768971032340,-100.92711483,0.00017323,2]
[402904141,1768971032350,-150.00105749,0.0001737,2]
[402904142,1768971032359,-179.82,0.00017591,2]
[402904143,1768971032369,-179.82,0.00017811,2]
[402904144,1768971032379,-165.6,0.00017814,2]
[402904145,1768971032388,-358.0,0.00017828,2]
[402904146,1768971032398,-500.0,0.00017829,2]
[402904147,1768971032408,-82.07441077,0.00017829,2]
[402904150,1768971032439,-281.75741691,0.00017829,2]
[402904172,1768971038152,-136.16817232,0.00017829,2]
[402904173,1768971038162,-500.0,0.00017829,2]
[402904174,1768971038173,-500.0,0.00017829,2]
[402904175,1768971038183,-482.60373531,0.00017829,2]
[402904176,1768971038192,-500.0,0.00017829,2]
[402904177,1768971038202,-187.95251491,0.00017829,2]
[402904178,1768971038216,-218.21557777,0.00017829,2]
[402904179,1768971038228,-30.35089469,0.00017829,2]
[402904180,1768971038238,-426.83328752,0.00017829,2]
[402904181,1768971038260,-73.16671248,0.00017829,2]
[402904182,1768971038269,-96917.03137091,0.0001783,2]
[402904183,1768971038279,-151.0,0.00017839,2]
[402904184,1768971038289,-151.0,0.00017839,2]
[402904185,1768971038299,-151.0,0.00017852,2]
[402904186,1768971038309,-151.0,0.00017852,2]
[402904187,1768971038319,-19999.99,0.00017897,2]
[402904188,1768971038329,-391.3649,0.000179,2]
[402904189,1768971038339,-5467.6878,0.000179,2]
[402904190,1768971038348,-280.6551231,0.000179,2]
[402904191,1768971038358,-996.78523006,0.000179,2]
[402904192,1768971038368,-1063.17120756,0.000179,2]
[402904193,1768971038378,-174.38650115,0.000179,2]
[402904194,1768971038388,-2683.23467974,0.000179,2]
[402904195,1768971038403,-482.14296142,0.000179,2]
[402904196,1768971038413,-20733.84576156,0.000179,2]
[402904197,1768971038423,-198.25532393,0.000179,2]
[402904199,1768971038433,-523.19893655,0.000179,2]
[402904201,1768971038443,-922.98494083,0.000179,2]
[402904202,1768971038453,-500.0,0.00017973,2]
[402904205,1768971038463,-150.0,0.00017973,2]
[402904207,1768971038473,-500.0,0.00017989,2]
[402904209,1768971038483,-500.0,0.00017989,2]
[402904212,1768971038494,-387.3461864,0.00017989,2]
[402904214,1768971038504,-111870.7603652,0.0001799,2]
[402904216,1768971038514,-183.78840612,0.00017999,2]
[402904218,1768971038530,-500.0,0.00017999,2]
[402904220,1768971038540,-500.0,0.00017999,2]
[402904222,1768971038550,-500.0,0.00017999,2]
[402904224,1768971038562,-515.68328521,0.00017999,2]
[402904226,1768971038572,-586.19616648,0.00017999,2]
[402904228,1768971038582,-500.0,0.00017999,2]
[402904231,1768971038592,-500.0,0.00017999,2]
[402904233,1768971038606,-500.0,0.00017999,2]
[402904235,1768971038616,-500.0,0.00017999,2]
[402904237,1768971038626,-500.0,0.00017999,2]
[402904239,1768971038636,-500.0,0.00017999,2]
[402904241,1768971038647,-500.0,0.00017999,2]
[402904243,1768971038657,-500.0,0.00017999,2]
[402904245,1768971038667,-207.27738091,0.00017999,2]
[402904247,1768971038676,-500.0,0.00017999,2]
[402904249,1768971038685,-558.50405266,0.00017999,2]
[402904251,1768971038695,-150.0,0.00017999,2]
[402904253,1768971038705,-207.42,0.00017999,2]
[402904255,1768971038714,-425.09558342,0.00017999,2]
[402904257,1768971038724,-242.6881512,0.00017999,2]
[402904259,1768971038734,-45368.50967968,0.00018,2]
[402904261,1768971038743,-2491152.16224639,0.00018,2]
[402904264,1768971038763,-614.38108556,0.00018,2]
[402904267,1768971038775,-2629.97761171,0.00018,2]
[402904273,1768971038823,-16251.19870972,0.00018,2]
[402904275,1768971038835,-54053.18760492,0.00018,2]
[402904277,1768971038846,-718.46133468,0.00018,2]
[402904280,1768971038858,-7243.67967299,0.00018,2]
[402904416,1768971040389,-151.0,0.0001785,2]
[402904418,1768971040399,-151.0,0.0001785,2]
[402904420,1768971040408,-481.04332744,0.00018,2]
[402904422,1768971040420,-503.1879829,0.00018,2]
[402904424,1768971040431,-1535.68491677,0.00018,2]
[402904432,1768971040496,-19519.89985679,0.00018,2]
[402904731,1768971043403,-343495.3153597,0.00018,2]
[402904992,1768971046172,-817.13700213,0.00018,2]
[402904993,1768971046225,-416.21800002,0.00018,2]
[402905008,1768971671565,517.33299348,0.000226,120]
[402905010,1768971993910,7018.0,0.00016415,2]
[402905084,1768972232286,-157.0,0.00017,2]
[402905085,1768972232296,-164.55982235,0.00017,2]
[402905086,1768972232307,-143.34555893,0.00017,2]
[402905087,1768972232316,-769.2,0.000176,2]
[402905088,1768972232325,-150.00668926,0.0001764,2]
[402905089,1768972232335,-996.63500499,0.000178,2]
[402905090,1768972232346,-18.92015981,0.000178,2]
[402905091,1768972232355,-968.52781509,0.00017899,2]
[402905092,1768972232366,-231.47218491,0.00017899,2]
[402905093,1768972232375,-777.77136822,0.000179,2]
[402905094,1768972232386,-5784.96598384,0.000179,2]
[402905095,1768972232404,-3437.26264794,0.000179,2]
[402905096,1768972232413,-3714.21112521,0.000179,2]
[402905097,1768972232424,-1407.00725734,0.000179,2]
[402905098,1768972232435,-1295.21988168,0.000179,2]
[402905099,1768972232446,-682.15500896,0.000179,2]
[402905100,1768972232457,-3055.13271573,0.000179,2]
[402905101,1768972232469,-10280.68929723,0.000179,2]
[402905102,1768972232479,-151.0,0.00017966,2]
[402905103,1768972232489,-151.0,0.00017969,2]
[402905104,1768972232498,-151.0,0.00017969,2]
[402905105,1768972232507,-151.0,0.00017972,2]
[402905106,1768972232517,-151.0,0.00017972,2]
[402905107,1768972232527,-513.96107925,0.00017989,2]
[402905108,1768972232536,-500.0,0.00017989,2]
[402905109,1768972232545,-500.0,0.00017989,2]
[402905110,1768972232555,-151.0,0.00017989,2]
[402905111,1768972232564,-549.685089,0.00017989,2]
[402905113,1768972232574,-4231.8897321,0.00017999,2]
[402905116,1768972232584,-88744.8681473,0.00017999,2]
[402905118,1768972232596,-20271.39612398,0.00017999,2]
[402905119,1768972232614,-516.78011832,0.00017999,2]
[402905120,1768972232624,-1427.00894998,0.00017999,2]
[402905121,1768972232636,-883.01346127,0.00017999,2]
[402905122,1768972232647,-305.73172199,0.00017999,2]
[402905125,1768972232662,-7282.46985046,0.00017999,2]
[402905127,1768972232673,-1280.76447616,0.00017999,2]
[402905128,1768972232684,-653.82212702,0.00017999,2]
[402905129,1768972232695,-1286.0085527,0.00017999,2]
[402905130,1768972232714,-736.07642552,0.00017999,2]
[402905131,1768972232727,-347.43508066,0.00017999,2]
[402905132,1768972232739,-445.96440231,0.00017999,2]
[402905135,1768972238407,-1267.69884639,0.00017999,2]
[402905150,1768972238935,-20708.48312944,0.00017999,2]
[402905151,1768972238985,-449.3404125,0.00017999,2]
[402905152,1768972238997,-550.6595875,0.00017999,2]
[402905155,1768972240831,-493.18845007,0.00017999,2]
[402905156,1768972240842,-428.57,0.00017999,2]
[402905159,1768972243710,-11520.93589168,0.00017999,2]
[402905161,1768972243853,-7.84512007,0.00017999,2]
[402905192,1768972644421,825.2,0.00016415,2]
[402905222,1768972820664,340.07,0.00016205,2]
[402905236,1768972936797,487.78208904,0.000176,30]
[402905237,1768972936885,576.2147114,0.000176,30]
[402905286,1768973315159,84585.00994066,0.00016,4]
[402905316,1768973431640,-192.3133,0.000169,2]
[402905317,1768973431649,-200.0,0.00016925,2]
[402905318,1768973431659,-150.00111097,0.00017052,2]
[402905319,1768973431667,-200.0,0.00017124,2]
[402905320,1768973431677,-200.0,0.00017317,2]
[402905321,1768973431686,-56.68558903,0.00017337,2]
[402905322,1768973431698,-143.31441097,0.00017337,2]
[402905323,1768973431706,-364.68558903,0.00017508,2]
[402905360,1768973437518,-1566.95441097,0.00017508,2]
[402905361,1768973437528,-57538.1263714,0.0001753,2]
[402905362,1768973437576,-1510.5689286,0.0001753,2]
[402905363,1768973437586,-166.66,0.00017799,2]
[402905364,1768973437596,-1929.55481312,0.000178,2]
[402905365,1768973437605,-1929.55481306,0.00017811,2]
[402905366,1768973437614,-96917.03137091,0.0001782,2]
[402905367,1768973437624,-1929.55481306,0.00017822,2]
[402905368,1768973437634,-1929.55481306,0.00017833,2]
[402905369,1768973437643,-1929.55481306,0.00017844,2]
[402905370,1768973437652,-1929.55481306,0.00017856,2]
[402905371,1768973437661,-391.3649,0.00017865,2]
[402905372,1768973437670,-1929.55481306,0.00017867,2]
[402905373,1768973437679,-1929.55481306,0.00017878,2]
[402905374,1768973437688,-1929.55481306,0.00017889,2]
[402905375,1768973437697,-20464.3583337,0.00017896,2]
[402905376,1768973437706,-20464.35833368,0.00017896,2]
[402905377,1768973437715,-20464.35833368,0.00017897,2]
[402905378,1768973437724,-20464.35833368,0.00017897,2]
[402905379,1768973437733,-20464.35833368,0.00017898,2]
[402905380,1768973437742,-500.0,0.00017898,2]
[402905381,1768973437751,-242.6881512,0.00017898,2]
[402905382,1768973437761,-425.09558342,0.00017898,2]
[402905383,1768973437771,-500.0,0.00017898,2]
[402905384,1768973437780,-351.4607873,0.00017898,2]
[402905385,1768973437793,-500.0,0.00017898,2]
[402905386,1768973437802,-245.81388859,0.00017898,2]
[402905387,1768973437811,-500.0,0.00017898,2]
[402905388,1768973437821,-571.67255403,0.00017898,2]
[402905389,1768973437830,-20464.35833368,0.00017898,2]
[402905390,1768973437839,-20464.35833368,0.00017899,2]
[402905391,1768973437849,-27556.0171,0.00017899,2]
[402905392,1768973437859,-20464.35833368,0.00017899,2]
[402905393,1768973437868,-20464.35833368,0.000179,2]
[402905394,1768973437878,-161.0,0.000179,2]
[402905395,1768973437888,-280.6551231,0.000179,2]
[402905396,1768973437897,-1929.55481306,0.000179,2]
[402905397,1768973437906,-996.78523006,0.000179,2]
[402905398,1768973437916,-1582.86126496,0.000179,2]
[402905399,1768973437926,-1063.17120756,0.000179,2]
[402905400,1768973437937,-158.60706812,0.000179,2]
[402905401,1768973437947,-20464.35833368,0.000179,2]
[402905402,1768973437956,-500.0,0.00017973,2]
[402905403,1768973437965,-150.0,0.00017973,2]
[402905404,1768973437974,-1154.955617,0.00017978,2]
[402905405,1768973437983,-73271.7907748,0.00017978,2]
[402905406,1768973437991,-161.0,0.0001799,2]
[402905407,1768973438001,-32825.23,0.0001799,2]
[402905408,1768973438012,-6999.3,0.0001799,2]
[402905409,1768973438032,-111870.7603652,0.0001799,2]
[402905410,1768973438042,-28739.7,0.00017997,2]
[402905411,1768973438051,-9999.99,0.00017998,2]
[402905412,1768973438060,-150.99,0.00017998,2]
[402905413,1768973438069,-499.99,0.00017998,2]
[402905414,1768973438079,-999.99,0.00017998,2]
[402905415,1768973438089,-5967.96,0.00017998,2]
[402905416,1768973438098,-419.18,0.00017998,2]
[402905417,1768973438107,-6293.8,0.00017998,2]
[402905418,1768973438116,-150.99,0.00017998,2]
[402905419,1768973438125,-13988.61,0.00017998,2]
[402905420,1768973438134,-3530.2048803,0.00017999,2]
[402905421,1768973438143,-217.08682436,0.00017999,2]
[402905422,1768973438152,-300.0,0.00017999,2]
[402905423,1768973438161,-586.19616648,0.00017999,2]
[402905424,1768973438171,-387.3461864,0.00017999,2]
[402905425,1768973438180,-150.0,0.00017999,2]
[402905426,1768973438189,-300.0,0.00017999,2]
[402905427,1768973438199,-583775.82908851,0.00018,2]
[402905428,1768973438208,-151.47475456,0.00018,2]
[402905429,1768973438218,-151.0,0.00018,2]
[402905430,1768973438227,-1568763.37367002,0.00018,2]
[402905440,1768973442787,-5256.82456911,0.00018,2]
[402905441,1768973442877,-1258.38833289,0.00018,2]
[402905442,1768973442888,-552.73489914,0.00018,2]
[402905443,1768973442957,-5536.31774307,0.00018,2]
[402905444,1768973442968,-19646.9005,0.00018,2]
[402905481,1768974207718,5456.0,0.000162,3]
[402905482,1768974331406,5533.0,0.000163,5]
[402905488,1768974604825,-258.90939252,0.00016556,5]
[402905489,1768974604846,-258.90939252,0.00016596,5]
[402905490,1768974604867,-170.5013844,0.000166,2]
[402905491,1768974604890,-290.0,0.000166,2]
[402905492,1768974604913,-180.82,0.00016656,2]
[402905493,1768974604935,-226.06143262,0.00016696,2]
[402905494,1768974604956,-195.0,0.00016696,2]
[402905495,1768974604978,-150.0,0.00016792,2]
[402905496,1768974604999,-150.00685037,0.00016825,2]
[402905497,1768974605022,-3240.0,0.00016973,2]
[402905517,1768974632005,-1200.0,0.00017024,2]
[402905519,1768974632015,-167.21125467,0.00017025,2]